bitfinex-derivatives/quotes_BTCF0:USTF0_20210104
["timestamp","ask_amount","ask_price","bid_price","bid_amount"]
[1609747826668,0.11693,32442.0,32441.0,0.14033567]
[1609747826868,0.12415,32442.0,32441.0,0.14033567]
[1609747827469,0.26448567,32442.0,32441.0,0.14033567]
[1609747828475,0.12415,32442.0,32441.0,0.14033567]
[1609747828667,0.12415,32442.0,32441.0,4.58693567]
[1609747829869,0.12415,32442.0,32441.0,0.14033567]
[1609747831972,0.12909,32445.0,32441.0,0.14033567]
[1609747836079,0.12909,32445.0,32442.0,0.5975]
[1609747836579,0.12909,32445.0,32441.0,0.14033567]
[1609747836781,0.12909,32445.0,32443.0,4.9722]
[1609747837182,0.2937,32475.0,32443.0,4.9722]
[1609747837382,0.2937,32475.0,32456.0,0.14033567]
[1609747839482,0.14033567,32457.0,32456.0,0.14033567]
[1609747839682,0.28400567,32457.0,32456.0,0.14033567]
[1609747845588,0.28400567,32457.0,32438.0,0.15452]
[1609747847689,0.28400567,32457.0,32456.0,0.14033567]
[1609747852998,0.28400567,32457.0,32456.0,4.23203567]
[1609747855100,0.28400567,32457.0,32456.0,0.14033567]
[1609747855498,0.28400567,32457.0,32456.0,3.83703567]
[1609747860310,0.28400567,32457.0,32456.0,3.6967]
[1609747862110,0.28400567,32457.0,32438.0,0.15452]
[1609747862313,0.28400567,32457.0,32428.0,0.5331]
[1609747862815,0.7047,32456.0,32428.0,0.5331]
[1609747863715,0.7047,32456.0,32443.0,0.14033567]
[1609747865420,0.7047,32456.0,32443.0,0.23966567]
[1609747865618,0.2937,32475.0,32443.0,0.23966567]
[1609747865817,0.14033567,32453.0,32452.0,0.14033567]
[1609747867522,0.14033567,32453.0,32443.0,0.09933]
[1609747867722,0.14033567,32449.0,32445.0,0.14033567]
[1609747870726,0.14726,32465.0,32445.0,0.14033567]
[1609747871127,0.2937,32475.0,32445.0,0.14033567]
[1609747871727,0.2937,32475.0,32453.0,0.14033567]
[1609747873730,0.2937,32475.0,32466.0,0.14033567]
[1609747873929,2.86146552,32492.0,32466.0,0.14033567]
[1609747874329,0.2871,32494.0,32466.0,0.14033567]
[1609747875130,3.15217105,32494.0,32466.0,0.14033567]
[1609747875729,0.14033567,32468.0,32466.0,0.14033567]
[1609747876131,0.29215567,32468.0,32466.0,0.14033567]
[1609747877130,0.29215567,32468.0,32451.0,0.1771]
[1609747877731,0.15182,32468.0,32462.0,0.14033567]
[1609747878634,2.86500702,32495.0,32462.0,0.14033567]
[1609747878833,2.86500702,32495.0,32470.0,5.0256]
[1609747879234,2.86500702,32495.0,32462.0,0.14033567]
[1609747879434,2.99106702,32495.0,32481.0,4.4302]
[1609747879634,2.99106702,32495.0,32462.0,0.14033567]
[1609747879835,0.12606,32495.0,32494.0,0.14033567]
[1609747880034,0.12606,32495.0,32494.0,0.78973567]
[1609747881036,0.12606,32495.0,32494.0,0.14033567]
[1609747884345,0.12606,32495.0,32485.0,4.663]
[1609747884540,4.2079,32521.0,32485.0,4.663]
[1609747884741,0.13509,32499.0,32478.0,0.10297]
[1609747885144,0.13509,32499.0,32482.0,4.9336]
[1609747885643,0.13509,32499.0,32478.0,0.10297]
[1609747885843,0.13509,32499.0,32498.0,0.14033567]
[1609747888045,0.14033567,32519.0,32498.0,0.14033567]
[1609747889146,0.14033567,32519.0,32501.0,3.5317]
[1609747889849,0.14033567,32519.0,32518.0,0.14033567]
[1609747891648,0.07868641,32522.0,32518.0,0.14033567]
[1609747894054,0.07868641,32522.0,32518.0,4.14673567]
[1609747894554,0.07868641,32522.0,32518.0,0.14033567]
[1609747895457,0.07868641,32522.0,32518.0,0.64183567]
[1609747896256,2.86765709,32526.0,32518.0,0.64183567]
[1609747897860,2.86765709,32526.0,32525.0,0.14033567]
[1609747898063,2.86580488,32528.0,32525.0,0.14033567]
[1609747900064,0.14033567,32552.0,32525.0,0.14033567]
[1609747900472,0.14033567,32552.0,32529.0,3.831]
[1609747900865,2.80714408,32579.0,32529.0,3.831]
[1609747901465,2.80714408,32579.0,32529.0,3.93675]
[1609747901872,0.14033567,32573.0,32572.0,0.14033567]
[1609747902066,0.24295567,32573.0,32572.0,0.14033567]
[1609747902466,0.24295567,32573.0,32529.0,0.10575]
[1609747902666,4.44285567,32573.0,32540.0,3.7753]
[1609747903969,4.30252,32573.0,32557.0,0.14033567]
[1609747905971,0.14033567,32558.0,32540.0,3.7753]
[1609747906170,0.28846567,32558.0,32540.0,3.7753]
[1609747906370,0.28846567,32558.0,32529.0,0.10575]
[1609747906571,4.5661,32557.0,32522.0,0.11627]
[1609747906771,4.5661,32557.0,32513.0,4.57]
[1609747907975,4.5661,32557.0,32538.0,0.14033567]
[1609747908172,0.14813,32558.0,32538.0,0.14033567]
[1609747909980,0.14033567,32545.0,32538.0,0.14033567]
[1609747910374,0.28526567,32545.0,32538.0,0.14033567]
[1609747911776,0.96866567,32545.0,32538.0,0.14033567]
[1609747911977,0.96866567,32545.0,32516.0,4.5797]
[1609747912177,4.42496567,32545.0,32512.0,4.8386]
[1609747912378,0.28526567,32545.0,32504.0,0.14156]
[1609747912579,4.5738,32542.0,32504.0,0.14156]
[1609747913379,0.2853,32541.0,32492.0,0.1771]
[1609747914080,0.2853,32541.0,32526.0,0.14033567]
[1609747914480,0.2853,32541.0,32492.0,0.1771]
[1609747916083,0.2853,32541.0,32516.0,0.14033567]
[1609747917183,0.2853,32541.0,32492.0,0.1771]
[1609747917583,4.9684,32528.0,32492.0,0.1771]
[1609747917783,5.10818,32528.0,32492.0,0.1771]
[1609747917986,0.14033567,32510.0,32508.0,0.14033567]
[1609747918186,0.26258567,32510.0,32508.0,0.14033567]
[1609747918684,0.26258567,32510.0,32492.0,0.1771]
[1609747918884,0.26258567,32510.0,32484.0,4.6742]
[1609747919985,0.12225,32510.0,32504.0,0.14033567]
[1609747921985,0.14033567,32505.0,32504.0,0.14033567]
[1609747922789,0.12225,32510.0,32504.0,0.14033567]
[1609747923287,0.272,32526.0,32504.0,0.14033567]
[1609747923989,0.272,32526.0,32508.0,0.14033567]
[1609747925289,0.272,32526.0,32487.0,4.538]
[1609747926091,0.272,32526.0,32504.0,0.14033567]
[1609747927496,3.4474,32514.0,32504.0,0.14033567]
[1609747927696,3.54697,32514.0,32504.0,0.14033567]
[1609747928098,0.14033567,32505.0,32504.0,0.14033567]
[1609747928296,0.28181567,32505.0,32504.0,0.14033567]
[1609747930396,0.28181567,32505.0,32482.0,0.12823]
[1609747930596,0.28181567,32505.0,32477.0,0.1771]
[1609747930797,0.14148,32505.0,32454.0,0.1771]
[1609747932200,0.14148,32505.0,32485.0,0.14033567]
[1609747933405,0.271,32507.0,32485.0,0.14033567]
[1609747933904,0.9251,32507.0,32470.0,4.2327]
[1609747934104,0.9251,32507.0,32479.0,0.14033567]
[1609747934303,1.07621,32507.0,32470.0,4.2327]
[1609747934704,1.07621,32507.0,32470.0,4.0327]
[1609747936105,1.07621,32507.0,32473.0,0.14033567]
[1609747936305,1.07621,32507.0,32470.0,3.97303567]
[1609747938108,0.14033567,32471.0,32470.0,3.97303567]
[1609747938306,0.28096567,32471.0,32469.0,0.14033567]
[1609747938707,0.28096567,32471.0,32456.0,3.6345]
[1609747940108,0.14033567,32466.0,32464.0,0.14033567]
[1609747941411,0.14033567,32466.0,32444.0,3.9852]
[1609747942112,0.14063,32471.0,32461.0,0.14033567]
[1609747942310,0.14063,32471.0,32444.0,3.9852]
[1609747943514,3.4593,32482.0,32444.0,3.9852]
[1609747944112,0.14033567,32460.0,32453.0,0.14033567]
[1609747944313,0.27200567,32460.0,32453.0,0.14033567]
[1609747946017,0.27200567,32460.0,32444.0,3.9852]
[1609747946214,0.14033567,32449.0,32443.0,0.14033567]
[1609747947319,0.14033567,32449.0,32436.0,0.15537]
[1609747947518,0.14033567,32449.0,32431.0,0.1771]
[1609747948218,0.15994,32452.0,32431.0,0.1771]
[1609747950120,0.14033567,32432.0,32431.0,0.1771]
[1609747950320,0.14033567,32432.0,32425.0,0.28347567]
[1609747950921,0.14033567,32432.0,32425.0,0.14314]
[1609747951320,0.23253567,32432.0,32403.0,0.1771]
[1609747951520,0.37692567,32432.0,32403.0,0.1771]
[1609747951721,0.28472567,32432.0,32403.0,0.1771]
[1609747952124,0.14033567,32413.0,32403.0,0.1771]
[1609747952726,0.14033567,32413.0,32379.0,0.356]
[1609747954028,0.7167,32412.0,32379.0,0.356]
[1609747954228,0.84023,32412.0,32399.0,0.14033567]
[1609747956228,0.14033567,32400.0,32385.0,0.14097]
[1609747957229,0.14033567,32400.0,32314.0,1.76748081]
[1609747957428,4.6507,32395.0,32363.0,0.356]
[1609747957630,4.6507,32395.0,32363.0,0.10163]
[1609747958030,4.76931,32395.0,32363.0,0.10163]
[1609747958230,0.14033567,32381.0,32363.0,0.10163]
[1609747959831,0.09907,32388.0,32363.0,0.10163]
[1609747960231,0.14033567,32385.0,32384.0,0.14033567]
[1609747962935,0.14033567,32385.0,32364.0,0.1771]
[1609747963336,0.14033567,32385.0,32363.0,0.10163]
[1609747963736,0.14033567,32385.0,32342.0,0.356]
[1609747964237,0.14033567,32385.0,32384.0,0.14033567]
[1609747964436,0.14033567,32385.0,32382.0,0.14566]
[1609747966038,0.14033567,32385.0,32359.0,0.1771]
[1609747966237,4.1323,32390.0,32372.0,0.14033567]
[1609747966439,4.1323,32390.0,32372.0,0.29427567]
[1609747967942,0.11337,32393.0,32372.0,0.29427567]
[1609747968342,0.14033567,32381.0,32380.0,0.14033567]
[1609747970446,0.14033567,32381.0,32372.0,0.15394]
[1609747971348,0.14033567,32381.0,32366.0,3.818]
[1609747971550,0.14033567,32381.0,32343.0,0.1771]
[1609747971948,0.14033567,32381.0,32325.0,3.5203]
[1609747972249,0.14033567,32381.0,32379.0,0.14033567]
[1609747974050,0.11337,32393.0,32379.0,0.14033567]
[1609747974250,0.14083,32404.0,32379.0,0.14033567]
[1609747974450,3.4675,32431.0,32382.0,4.1283]
[1609747974851,3.4675,32431.0,32410.0,0.14033567]
[1609747975051,2.75765402,32460.0,32410.0,0.14033567]
[1609747975250,4.2089,32449.0,32410.0,0.14033567]
[1609747975452,4.33514,32449.0,32410.0,0.14033567]
[1609747976951,4.33514,32449.0,32428.0,0.14033567]
[1609747977151,0.12624,32449.0,32428.0,0.14033567]
[1609747978954,0.12624,32449.0,32448.0,0.14033567]
[1609747980557,3.6618,32462.0,32448.0,0.14033567]
[1609747980958,2.76221575,32481.0,32453.0,0.14033567]
[1609747981360,0.5858,32487.0,32453.0,0.14033567]
[1609747982960,0.5858,32487.0,32465.0,0.14033567]
[1609747984960,0.14033567,32466.0,32461.0,0.14033567]
[1609747985162,0.28006567,32466.0,32446.0,0.15148]
[1609747986162,4.792,32462.0,32430.0,0.13958]
[1609747986363,0.28006567,32466.0,32430.0,0.13958]
[1609747986563,3.9374,32460.0,32423.0,0.13635]
[1609747986966,3.9374,32460.0,32443.0,0.14033567]
[1609747987366,3.9374,32460.0,32423.0,0.13635]
[1609747988366,3.9374,32460.0,32414.0,5.1502]
[1609747988966,0.13973,32466.0,32424.0,0.14033567]
[1609747988967,0.14033567,32430.0,32424.0,0.14033567]
[1609747989166,0.26191567,32430.0,32402.0,0.356]
[1609747989568,3.72241567,32430.0,32369.0,0.5331]
[1609747991069,3.58208,32430.0,32402.0,0.14033567]
[1609747991268,3.58208,32430.0,32402.0,0.25960567]
[1609747991269,0.12158,32430.0,32402.0,0.25960567]
[1609747992370,3.634,32415.0,32402.0,0.25960567]
[1609747993071,0.14033567,32403.0,32402.0,0.25960567]
[1609747993673,0.12158,32430.0,32402.0,0.25960567]
[1609747994271,0.2961,32439.0,32402.0,0.25960567]
[1609747995075,0.2961,32439.0,32421.0,0.14033567]
[1609747995475,4.5758,32443.0,32421.0,0.14033567]
[1609747995673,4.5758,32443.0,32417.0,0.16079]
[1609747996476,4.5758,32443.0,32410.0,0.13293]
[1609747996675,4.69162,32443.0,32410.0,0.13293]
[1609747997074,4.69162,32443.0,32413.0,0.14033567]
[1609747997777,4.69162,32443.0,32402.0,0.11927]
[1609747997978,4.69162,32443.0,32398.0,0.1771]
[1609747999078,0.14033567,32399.0,32398.0,0.31743567]
[1609747999279,0.14033567,32399.0,32398.0,0.14033567]
[1609748000479,0.14033567,32399.0,32377.0,4.1986]
[1609748000679,0.14033567,32399.0,32369.0,0.5331]
[1609748000880,0.26318567,32399.0,32369.0,0.5331]
[1609748001080,0.14033567,32379.0,32372.0,0.14033567]
[1609748003184,0.14033567,32379.0,32378.0,0.14033567]
[1609748005487,0.1546,32392.0,32378.0,0.14033567]
[1609748006190,0.12285,32399.0,32378.0,0.14033567]
[1609748006389,0.295,32413.0,32378.0,0.14033567]
[1609748007189,0.5992,32411.0,32386.0,0.14033567]
[1609748007388,0.295,32413.0,32386.0,0.14033567]
[1609748007591,0.295,32413.0,32373.0,0.356]
[1609748007789,4.5299,32404.0,32373.0,0.356]
[1609748007990,4.63232,32404.0,32373.0,0.356]
[1609748009191,4.63232,32404.0,32377.0,0.14033567]
[1609748011194,0.14033567,32378.0,32377.0,0.14033567]
[1609748013598,0.12251,32391.0,32377.0,0.14033567]
[1609748014197,0.10242,32404.0,32377.0,0.14033567]
[1609748014398,4.877,32418.0,32377.0,0.14033567]
[1609748014599,4.877,32418.0,32378.0,0.6403]
[1609748015000,2.833361,32445.0,32377.0,0.14033567]
[1609748015199,3.8115,32438.0,32404.0,0.14033567]
[1609748015399,3.5952,32434.0,32404.0,0.14033567]
[1609748017100,0.14033567,32407.0,32404.0,0.14033567]
[1609748018903,0.13215,32414.0,32404.0,0.14033567]
[1609748019103,0.27248567,32414.0,32412.0,0.14033567]
[1609748020505,0.13958567,32414.0,32412.0,0.14033567]
[1609748020704,0.2745,32462.0,32412.0,0.14033567]
[1609748020904,0.2791,32442.0,32413.0,0.1771]
[1609748021105,0.2791,32442.0,32426.0,0.14033567]
[1609748021303,0.39553,32442.0,32426.0,0.14033567]
[1609748022303,0.11643,32442.0,32426.0,0.14033567]
[1609748023205,0.11643,32442.0,32424.0,0.15266]
[1609748023206,0.14033567,32427.0,32415.0,0.09878]
[1609748023608,0.14033567,32427.0,32413.0,0.1771]
[1609748023609,0.6705,32426.0,32413.0,0.1771]
[1609748024005,0.14033567,32427.0,32413.0,0.1771]
[1609748025204,0.14033567,32414.0,32402.0,0.14033567]
[1609748027108,0.14033567,32414.0,32383.0,0.1771]
[1609748027308,0.14033567,32403.0,32383.0,0.1771]
[1609748029311,0.14033567,32385.0,32383.0,0.1771]
[1609748029711,0.14033567,32385.0,32381.0,0.14033567]
[1609748031512,0.14033567,32385.0,32367.0,0.356]
[1609748033215,0.10504,32389.0,32380.0,0.14033567]
[1609748034614,0.10922,32400.0,32380.0,0.14033567]
[1609748034815,0.15429,32409.0,32380.0,0.14033567]
[1609748035015,4.3904,32411.0,32380.0,0.14033567]
[1609748035215,0.14033567,32395.0,32390.0,0.14033567]
[1609748037216,0.14033567,32391.0,32387.0,0.14033567]
[1609748037817,0.14033567,32391.0,32377.0,0.09822]
[1609748039117,0.14033567,32391.0,32371.0,0.1771]
[1609748039317,0.11521,32397.0,32383.0,0.14033567]
[1609748041419,0.14033567,32388.0,32383.0,0.14033567]
[1609748043221,3.4884,32394.0,32383.0,0.14033567]
[1609748043421,0.14033567,32384.0,32383.0,0.14033567]
[1609748044522,0.14033567,32384.0,32377.0,0.14122]
[1609748044922,5.0334,32382.0,32371.0,0.1771]
[1609748045122,5.0334,32382.0,32367.0,0.356]
[1609748045322,5.0334,32382.0,32376.0,0.14033567]
[1609748046724,5.0334,32382.0,32373.0,0.13165]
[1609748047127,0.11943,32389.0,32373.0,0.13165]
[1609748047329,0.14033567,32374.0,32373.0,0.13165]
[1609748047735,0.11943,32389.0,32373.0,0.13165]
[1609748048332,0.11521,32397.0,32373.0,0.13165]
[1609748048533,0.10014,32404.0,32373.0,0.30875]
[1609748048732,4.8097,32418.0,32373.0,0.30875]
[1609748049332,0.14033567,32379.0,32373.0,0.30875]
[1609748049731,0.14033567,32379.0,32373.0,0.13165]
[1609748050532,0.14033567,32379.0,32372.0,0.14033567]
[1609748051334,0.14033567,32373.0,32372.0,0.14033567]
[1609748056339,0.12374,32390.0,32372.0,0.14033567]
[1609748056542,0.11896,32397.0,32372.0,0.29726567]
[1609748056740,1.0,32437.0,32384.0,4.0692]
[1609748057143,4.4273,32441.0,32385.0,0.1771]
[1609748057341,0.14033567,32401.0,32400.0,0.14033567]
[1609748057542,0.13824,32404.0,32400.0,0.14033567]
[1609748057741,0.13824,32404.0,32401.0,3.7781]
[1609748057942,0.13824,32404.0,32400.0,0.14033567]
[1609748058142,0.13824,32404.0,32401.0,4.1069]
[1609748058345,0.13824,32404.0,32401.0,4.21642]
[1609748058543,0.2882,32445.0,32401.0,4.21642]
[1609748058743,0.2882,32445.0,32401.0,0.10952]
[1609748058944,0.2882,32445.0,32406.0,4.7889]
[1609748059345,0.14033567,32419.0,32416.0,0.14033567]
[1609748059545,0.14033567,32419.0,32417.0,0.5571]
[1609748059945,0.1269,32431.0,32417.0,0.5571]
[1609748060849,0.1269,32431.0,32416.0,0.14033567]
[1609748061050,0.1269,32431.0,32423.0,4.2299]
[1609748061350,0.1269,32431.0,32430.0,0.14033567]
[1609748061952,0.1269,32431.0,32430.0,0.65473567]
[1609748062153,0.14033567,32437.0,32430.0,0.65473567]
[1609748062852,2.85659362,32451.0,32430.0,0.65473567]
[1609748063453,2.85659362,32451.0,32450.0,0.14033567]
[1609748068161,0.14033567,32452.0,32450.0,0.14033567]
[1609748069162,2.8546528,32479.0,32450.0,0.14033567]
[1609748069361,2.8546528,32479.0,32463.0,0.14033567]
[1609748069763,2.8546528,32479.0,32448.0,4.4968]
[1609748069963,2.9531728,32479.0,32448.0,4.4968]
[1609748071365,0.14033567,32451.0,32450.0,0.14033567]
[1609748071564,0.12039,32461.0,32446.0,0.11162]
[1609748071765,0.12039,32461.0,32438.0,0.13241]
[1609748071965,0.12039,32461.0,32430.0,4.3982]
[1609748073368,0.12039,32461.0,32437.0,0.14033567]
[1609748074169,0.12039,32461.0,32430.0,4.3982]
[1609748075271,0.0932,32460.0,32430.0,4.3982]
[1609748075473,0.14033567,32431.0,32430.0,4.3982]
[1609748075672,0.14033567,32431.0,32429.0,0.14033567]
[1609748076471,0.15401,32434.0,32429.0,0.14033567]
[1609748076672,0.28,32459.0,32429.0,0.14033567]
[1609748076673,0.0911,32433.0,32429.0,0.14033567]
[1609748078273,0.0928,32438.0,32429.0,0.14033567]
[1609748078672,0.2923,32470.0,32429.0,0.14033567]
[1609748079481,0.14033567,32454.0,32452.0,0.14033567]
[1609748080574,0.13087,32460.0,32439.0,4.0458]
[1609748081380,0.14033567,32454.0,32452.0,0.14033567]
[1609748081581,0.14033567,32454.0,32436.0,0.12017]
[1609748081780,0.14033567,32454.0,32443.0,3.457]
[1609748082778,0.13087,32460.0,32443.0,3.457]
[1609748083478,0.13087,32460.0,32452.0,0.14033567]
[1609748084778,3.6435,32469.0,32452.0,0.14033567]
[1609748085379,0.14033567,32461.0,32456.0,0.14033567]
[1609748085782,0.28245567,32461.0,32456.0,0.14033567]
[1609748087482,0.14033567,32457.0,32456.0,0.14033567]
[1609748089987,0.14033567,32457.0,32436.0,0.12017]
[1609748090387,0.14033567,32457.0,32433.0,3.9809]
[1609748091287,0.14033567,32457.0,32425.0,0.1771]
[1609748091490,0.14033567,32441.0,32438.0,0.14033567]
[1609748092389,0.14033567,32441.0,32425.0,0.1771]
[1609748092789,0.14033567,32441.0,32395.0,3.8786]
[1609748093589,0.1208,32443.0,32422.0,0.14033567]
[1609748095591,0.14033567,32423.0,32422.0,0.14033567]
[1609748095791,0.25990567,32423.0,32422.0,0.14033567]
[1609748098097,0.11957,32423.0,32422.0,0.14033567]
[1609748100900,0.14033567,32427.0,32422.0,0.14033567]
[1609748103505,0.14033567,32423.0,32422.0,0.14033567]
[1609748103806,0.25112567,32423.0,32422.0,0.14033567]
[1609748104608,0.11079,32423.0,32422.0,0.14033567]
[1609748105806,0.11138,32431.0,32422.0,0.14033567]
[1609748107509,0.11138,32431.0,32430.0,0.14033567]
[1609748110715,0.14033567,32440.0,32430.0,0.14033567]
[1609748111514,0.14033567,32431.0,32430.0,0.14033567]
[1609748111714,0.25721567,32431.0,32430.0,0.14033567]
[1609748112617,5.24221567,32431.0,32430.0,0.14033567]
[1609748114421,0.25721567,32431.0,32430.0,0.14033567]
[1609748122635,0.11688,32431.0,32430.0,0.14033567]
[1609748122834,0.2722,32442.0,32430.0,0.14033567]
[1609748123034,0.1505,32431.0,32430.0,0.14033567]
[1609748124135,0.1505,32431.0,32430.0,4.37323567]
[1609748124935,0.1208,32443.0,32430.0,4.37323567]
[1609748125135,0.2882,32473.0,32430.0,4.37323567]
[1609748125336,0.2882,32473.0,32431.0,0.1771]
[1609748125735,0.2882,32473.0,32459.0,0.14033567]
[1609748126335,0.6814,32472.0,32459.0,0.14033567]
[1609748126535,0.2882,32473.0,32449.0,0.1771]
[1609748126735,4.7078,32468.0,32428.0,0.5331]
[1609748126937,4.85143,32468.0,32428.0,0.5331]
[1609748127738,0.14033567,32446.0,32440.0,0.14033567]
[1609748127939,0.30085567,32446.0,32440.0,0.14033567]
[1609748129241,0.16052,32446.0,32440.0,0.14033567]
[1609748129642,0.14033567,32445.0,32444.0,0.14033567]
[1609748130745,0.16052,32446.0,32444.0,0.14033567]
[1609748133149,4.8351,32463.0,32444.0,0.14033567]
[1609748133350,0.14363,32468.0,32444.0,0.14033567]
[1609748133550,0.14363,32468.0,32445.0,0.1771]
[1609748133750,0.2882,32473.0,32464.0,0.14033567]
[1609748134751,0.2882,32473.0,32445.0,0.1771]
[1609748135651,0.14033567,32457.0,32455.0,0.14033567]
[1609748135852,0.27601567,32457.0,32455.0,0.14033567]
[1609748136453,0.13568,32457.0,32455.0,0.14033567]
[1609748137359,0.13568,32457.0,32455.0,4.96123567]
[1609748137557,0.14566,32457.0,32455.0,4.96123567]
[1609748138159,0.14566,32457.0,32455.0,0.14033567]
[1609748140860,0.23885567,32479.0,32455.0,0.14033567]
[1609748141660,0.23885567,32479.0,32478.0,0.14033567]
[1609748148368,3.97605567,32479.0,32478.0,0.14033567]
[1609748149167,3.97605567,32479.0,32451.0,0.1771]
[1609748149368,0.23885567,32479.0,32451.0,0.1771]
[1609748149569,4.2815,32459.0,32451.0,0.1771]
[1609748149771,4.2815,32459.0,32455.0,0.14033567]
[1609748149971,4.43578,32459.0,32428.0,0.5331]
[1609748151770,4.43578,32459.0,32446.0,0.14033567]
[1609748152373,4.43578,32459.0,32428.0,0.5331]
[1609748152973,5.0188,32447.0,32428.0,0.5331]
[1609748153175,5.15478,32447.0,32428.0,0.5331]
[1609748153776,5.15478,32447.0,32430.0,0.14033567]
[1609748155777,0.14033567,32432.0,32430.0,0.14033567]
[1609748156278,0.26224567,32432.0,32430.0,0.14033567]
[1609748158379,0.84644567,32432.0,32430.0,0.14033567]
[1609748162285,0.26224567,32432.0,32430.0,0.14033567]
[1609748162486,0.12191,32432.0,32430.0,0.14033567]
[1609748162685,0.12013,32432.0,32430.0,0.14033567]
[1609748164085,0.11048,32440.0,32430.0,0.14033567]
[1609748164285,0.11048,32440.0,32430.0,0.13933567]
[1609748165886,0.11048,32440.0,32439.0,0.14033567]
[1609748167892,0.25081567,32440.0,32439.0,0.14033567]
[1609748169294,0.11048,32440.0,32439.0,0.14033567]
[1609748169694,0.0936,32440.0,32439.0,0.14033567]
[1609748170296,0.14033567,32444.0,32439.0,0.14033567]
[1609748171298,0.0932,32443.0,32439.0,0.14033567]
[1609748171900,0.14033567,32444.0,32439.0,0.14033567]
[1609748172702,0.14033567,32444.0,32439.0,0.04433567]
[1609748172902,0.0918,32443.0,32439.0,0.04433567]
[1609748173903,0.14033567,32444.0,32439.0,0.04433567]
[1609748174805,0.0937,32443.0,32439.0,0.04433567]
[1609748176007,0.14033567,32440.0,32439.0,0.04433567]
[1609748176208,0.24114567,32440.0,32439.0,0.04433567]
[1609748176908,0.33484567,32440.0,32439.0,0.04433567]
[1609748177710,0.24114567,32440.0,32439.0,0.04433567]
[1609748179915,0.10081,32440.0,32439.0,0.04433567]
[1609748181318,0.15428,32459.0,32439.0,0.04433567]
[1609748181916,0.15428,32459.0,32442.0,5.0794]
[1609748182118,0.15428,32459.0,32457.0,0.14033567]
[1609748183223,0.15428,32459.0,32443.0,0.1771]
[1609748183424,0.15428,32459.0,32442.0,5.0794]
[1609748184024,0.14033567,32455.0,32454.0,0.14033567]
[1609748184424,5.20803567,32455.0,32454.0,0.14033567]
[1609748185728,0.14033567,32455.0,32454.0,0.14033567]
[1609748187232,0.14033567,32455.0,32444.0,0.1771]
[1609748188032,0.15428,32459.0,32448.0,0.14033567]
[1609748190135,0.14033567,32449.0,32448.0,0.14033567]
[1609748190337,0.28446567,32449.0,32448.0,0.14033567]
[1609748190838,0.28446567,32449.0,32444.0,0.1771]
[1609748191939,0.28446567,32449.0,32430.0,0.356]
[1609748192138,0.14033567,32438.0,32437.0,0.14033567]
[1609748192339,0.81914567,32438.0,32437.0,0.14033567]
[1609748194141,0.81914567,32438.0,32430.0,0.356]
[1609748196242,0.14033567,32431.0,32430.0,0.356]
[1609748196441,0.14033567,32431.0,32428.0,0.14033567]
[1609748196643,0.28557567,32431.0,32428.0,0.14033567]
[1609748200447,0.28557567,32431.0,32420.0,0.14033567]
[1609748200848,0.28557567,32431.0,32405.0,0.1771]
[1609748201248,4.4564,32428.0,32403.0,0.15786]
[1609748201448,4.4564,32428.0,32405.0,0.1771]
[1609748202451,0.14033567,32406.0,32405.0,0.1771]
[1609748203753,0.14033567,32406.0,32401.0,0.14033567]
[1609748205052,0.28370567,32406.0,32401.0,0.14033567]
[1609748206255,3.8259,32403.0,32401.0,0.14033567]
[1609748206455,0.14033567,32402.0,32401.0,0.14033567]
[1609748206853,3.8259,32403.0,32401.0,0.14033567]
[1609748208357,0.14033567,32402.0,32401.0,0.14033567]
[1609748215465,0.14033567,32402.0,32386.0,0.1771]
[1609748215665,4.4049,32398.0,32372.0,0.1771]
[1609748215867,4.52737,32398.0,32372.0,0.1771]
[1609748216466,4.52737,32398.0,32394.0,0.14033567]
[1609748216667,0.12247,32398.0,32394.0,0.14033567]
[1609748216867,0.12247,32398.0,32372.0,0.1771]
[1609748217067,0.12247,32398.0,32386.0,3.5214]
[1609748218369,0.12247,32398.0,32391.0,0.14033567]
[1609748220472,0.67543567,32392.0,32391.0,0.14033567]
[1609748221671,0.14033567,32392.0,32391.0,0.14033567]
[1609748222973,0.14033567,32392.0,32383.0,0.22783567]
[1609748223572,4.5407,32384.0,32383.0,0.22783567]
[1609748223974,4.6468,32384.0,32383.0,0.22783567]
[1609748224473,4.78713567,32384.0,32368.0,0.14033567]
[1609748225274,0.24643567,32384.0,32368.0,0.14033567]
[1609748225674,0.1061,32384.0,32368.0,0.14033567]
[1609748226075,0.1061,32384.0,32376.0,4.1427]
[1609748226475,0.26280567,32398.0,32383.0,0.14033567]
[1609748227075,0.26280567,32398.0,32384.0,0.662]
[1609748227276,0.12247,32398.0,32384.0,0.662]
[1609748227476,0.093,32399.0,32383.0,0.14033567]
[1609748227678,0.14337,32406.0,32388.0,4.0608]
[1609748227877,0.0932,32422.0,32388.0,4.0608]
[1609748228478,0.14033567,32403.0,32400.0,0.14033567]
[1609748228679,0.25554567,32403.0,32400.0,0.14033567]
[1609748229079,0.11521,32403.0,32400.0,0.14033567]
[1609748230080,0.0921,32402.0,32400.0,0.14033567]
[1609748230281,0.0921,32402.0,32388.0,4.0608]
[1609748230784,0.11521,32403.0,32388.0,4.0608]
[1609748230981,0.14033567,32402.0,32400.0,0.14033567]
[1609748231681,0.11521,32403.0,32388.0,4.0608]
[1609748231881,0.0925,32402.0,32388.0,4.0608]
[1609748232183,0.0925,32402.0,32375.0,0.09685]
[1609748232387,0.0925,32402.0,32372.0,4.5284]
[1609748232785,0.14033567,32393.0,32390.0,0.14033567]
[1609748232983,0.14033567,32393.0,32372.0,4.5284]
[1609748233183,0.26385567,32393.0,32369.0,0.27]
[1609748233585,0.26385567,32393.0,32368.0,0.11438]
[1609748233884,0.26385567,32393.0,32361.0,4.8101]
[1609748234886,0.14033567,32382.0,32381.0,0.14033567]
[1609748235086,0.23845567,32382.0,32381.0,0.14033567]
[1609748235686,0.09812,32382.0,32381.0,0.14033567]
[1609748240193,0.14033567,32386.0,32381.0,0.14033567]
[1609748240392,0.28850567,32386.0,32381.0,0.14033567]
[1609748240994,0.28850567,32386.0,32385.0,0.14033567]
[1609748241395,0.14817,32386.0,32385.0,0.14033567]
[1609748242498,0.12352,32393.0,32385.0,0.14033567]
[1609748242698,0.11521,32403.0,32385.0,5.15333567]
[1609748242898,5.1581,32424.0,32398.0,0.14033567]
[1609748243300,2.64615514,32447.0,32377.0,0.1771]